[Event "Dvorkovich Memorial Rapid 2018"]
[Site "Taganrog"]
[Date "2018.01.14"]
[Round "11"]
[White "Tyurin, Artem"]
[Black "Sipetin, Vladislav"]
[Result "1/2-1/2"]
[ECO "B18"]
[WhiteElo "1820"]
[BlackElo "2263"]
[Annotator "ChessBase"]
[PlyCount "47"]
[EventDate "2018.??.??"]
[EventType "swiss"]
[EventCountry "RUS"]
[SourceTitle "playchess.com"]
[Source "ChessBase"]
[SourceQuality "1"]
[TimeControl "900+10"]

1. e4 {[%emt 0:00:00]} c6 {[%emt 0:00:00]} 2. d4 {[%emt 0:00:00]} d5 {[%emt 0:00:00]} 3. Nc3 {[%emt 0:00:00]} dxe4 {[%emt 0:00:00]} 4. Nxe4 {[%emt 0:00:00]} Bf5 {[%emt 0:00:00]} 5. Ng3 {[%emt 0:00:00]} Bg6 {[%emt 0:00:04]} 6. Nh3 {[%emt 0:00:01]} Nf6 {[%emt 0:00:51]} 7. Nf4 {[%emt 0:00:09]} e5 {[%emt 0:00:02]} 8. dxe5 {[%emt 0:00:18]} Qa5+ {[%emt 0:00:07]} 9. c3 {[%emt 0:00:37]} Qxe5+ {[%emt 0:00:03]} 10. Be2 {[%emt 0:00:00]} Nbd7 {[%emt 0:00:43]} 11. O-O {[%emt 0:00:55]} O-O-O {[%emt 0:00:36]} 12. Qa4 {[%emt 0:01:01]} Bc5 {[%emt 0:03:41]} 13. Nxg6 {[%emt 0:00:19]} hxg6 {[%emt 0:00:17]} 14. Bf4 {[%emt 0:00:11]} Rh4 {[%emt 0:02:35]} 15. Bxe5 {[%emt 0:04:23]} Rxa4 {[%emt 0:00:11]} 16. Bxf6 {[%emt 0:00:12]} Nxf6 {[%emt 0:00:00]} 17. b4 {[%emt 0:00:13]} Bd6 {[%emt 0:00:33]} 18. Bc4 {[%emt 0:01:22]} Rd7 {[%emt 0:01:45]} 19. Bb3 {[%emt 0:00:15]} Ra3 {[%emt 0:00:21]} 20. Rad1 {[%emt 0:01:23]} Bxg3 {[%emt 0:00:51]} 21. fxg3 {[%emt 0:00:08]} Rxd1 {[%emt 0:01:04]} 22. Rxd1 {[%emt 0:00:12]} Nd5 {[%emt 0:00:06]} 23. Rd3 {[%emt 0:01:00]} a5 {[%emt 0:01:02]} 24. bxa5 {[%emt 0:00:25]} 1/2-1/2